bitfinex-derivatives/quotes_SOLF0:USTF0_20251108
["timestamp","ask_amount","ask_price","bid_price","bid_amount"]
[1762635289173,5.06574347,157.34,157.33,3.02]
[1762635292681,5.9222502,157.37,157.36,8.8011]
[1762635292890,5.9222502,157.39,157.37,3.08]
[1762635293385,5.9222502,157.4,157.37,3.08]
[1762635293780,9.04817518,157.4,157.37,3.11998993]
[1762635293979,9.04817518,157.4,157.38,5.7204]
[1762635294182,5.96817518,157.4,157.39,3.08]
[1762635294580,0.04592498,157.4,157.39,3.08]
[1762635299593,3.08,157.46,157.42,3.08]
[1762635299790,4.81953607,157.45,157.42,3.08]
[1762635299986,3.08,157.46,157.42,3.08]
[1762635300285,3.08,157.46,157.44,2.98]
[1762635301287,0.04405197,157.47,157.45,3.05]
[1762635301593,3.01,157.45,157.43,0.04096873]
[1762635301790,7.83059252,157.44,157.43,0.04096873]
[1762635301980,3.01,157.45,157.43,0.04096873]
[1762635302287,3.01,157.46,157.43,3.09096873]
[1762635302590,3.05405197,157.47,157.44,8.7681]
[1762635303884,3.05405197,157.47,157.43,0.04096873]
[1762635303885,0.04405197,157.47,157.45,8.7677]
[1762635304392,3.05405197,157.47,157.45,8.7677]
[1762635305392,0.04405197,157.47,157.45,8.7677]
[1762635306190,0.04405197,157.47,157.46,3.05]
[1762635308793,0.04405197,157.47,157.46,5.11843057]
[1762635308990,3.01,157.53,157.46,5.11843057]
[1762635308991,3.01,157.56,157.53,3.05]
[1762635309199,5.07843057,157.57,157.53,3.05]
[1762635309395,3.01,157.57,157.53,3.05]
[1762635309596,3.01,157.57,157.55,3.05]
[1762635309799,148.64086483,157.59,157.55,3.05]
[1762635309988,8.05051798,157.58,157.55,3.05]
[1762635310184,3.05248003,157.58,157.55,8.7641]
[1762635310388,3.05248003,157.58,157.56,3.05]
[1762635310884,3.01,157.56,157.54,0.04550563]
[1762635311090,3.01,157.54,157.42,3.05]
[1762635311288,2.06843057,157.44,157.42,3.05]
[1762635311489,2.06843057,157.44,157.35,3.05]
[1762635311997,0.04842001,157.41,157.38,3.09120589]
[1762635312300,0.04842001,157.41,157.4,8.7696]
[1762635321905,5.07843057,157.46,157.43,8.7686]
[1762635322107,3.01,157.45,157.36,3.05]
[1762635322511,3.01,157.45,157.41,8.7692]
[1762635322999,3.05161183,157.45,157.41,8.81082086]
[1762635323198,3.05161183,157.45,157.42,5.7188]
[1762635323403,3.05161183,157.45,157.43,3.05]
[1762635324211,3.05161183,157.45,157.42,8.7688]
[1762635328012,3.05161183,157.45,157.41,0.04162086]
[1762635328013,0.04161183,157.45,157.43,8.7685]
[1762635329108,0.04161183,157.45,157.44,3.05]
[1762635332816,5.24843057,157.54,157.47,3.22]
[1762635333009,3.18,157.52,157.47,3.22]
[1762635333803,0.04514577,157.51,157.48,3.26139]
[1762635334011,0.04514577,157.51,157.48,8.97809]
[1762635335814,0.04514577,157.51,157.49,3.22]
[1762635339516,3.22514577,157.51,157.48,0.04139]
[1762635339720,3.22514577,157.51,157.48,3.26139]
[1762635345220,3.22514577,157.51,157.49,3.21]
[1762635348527,0.04514577,157.51,157.5,3.21]
[1762635349828,0.04514577,157.51,157.48,0.04139]
[1762635349829,3.21514577,157.51,157.49,8.9263]
[1762635351424,3.21514577,157.51,157.48,0.04139]
[1762635351425,3.17,157.49,157.48,0.04139]
[1762635351631,8.17742244,157.49,157.48,0.04139]
[1762635351833,6.44066988,157.51,157.48,3.25139]
[1762635352936,3.27066988,157.51,157.49,3.21]
[1762635353124,0.04514577,157.51,157.49,3.21]
[1762635362541,0.04514577,157.51,157.5,2.95]
[1762635363835,3.14514577,157.51,157.48,2.99139]
[1762635364141,0.04514577,157.51,157.48,2.99139]
[1762635364536,0.04514577,157.51,157.49,2.95]
[1762635365936,0.04514577,157.51,157.49,8.6664]
[1762635366136,0.04514577,157.51,157.5,2.95]
[1762635366339,5.06123606,157.51,157.5,2.95]
[1762635366941,0.04514577,157.51,157.5,2.95]
[1762635372341,5.06922613,157.51,157.5,2.95]
[1762635372846,0.04514577,157.51,157.5,2.95]
[1762635373351,5.04426839,157.51,157.5,2.95]
[1762635373840,0.04514577,157.51,157.5,2.95]
[1762635385252,3.22552411,157.57,157.53,2.95]
[1762635386257,3.26565651,157.57,157.53,2.99410895]
[1762635387152,3.26565651,157.57,157.55,8.6641]
[1762635387457,3.26565651,157.57,157.56,2.95]
[1762635387458,0.0401324,157.57,157.56,2.95]
[1762635408995,2.06162935,157.63,157.57,2.97]
[1762635410096,5.17162935,157.63,157.62,5.7117]
[1762635412791,2.06162935,157.63,157.62,8.6817]
[1762635419700,0.04713287,157.64,157.63,2.97]
[1762635421104,3.15713287,157.64,157.62,5.75381603]
[1762635421312,5.15162935,157.63,157.62,5.75381603]
[1762635421710,5.15162935,157.63,157.62,0.04211603]
[1762635421911,3.09,157.62,157.58,2.96]
[1762635422107,2.06162935,157.59,157.58,2.96]
[1762635422415,5.15162935,157.59,157.55,2.96]
[1762635422910,5.15162935,157.59,157.57,8.6734]
[1762635422911,5.19956726,157.59,157.57,8.6734]
[1762635424908,3.09,157.58,157.57,5.7134]
[1762635425114,3.09,157.58,157.55,3.00025933]
[1762635425409,2.06162935,157.57,157.55,3.00025933]
[1762635426115,2.06162935,157.57,157.56,5.7138]
[1762635426813,2.06162935,157.57,157.56,8.6738]
[1762635427211,5.19956726,157.59,157.56,8.6738]
[1762635427812,2.10956726,157.59,157.58,2.96]
[1762635428314,3.09,157.58,157.57,5.7133]
[1762635429214,5.19956726,157.59,157.57,8.6733]
[1762635431216,5.19956726,157.59,157.57,5.7133]
[1762635431416,3.09,157.58,157.57,5.7133]
[1762635432817,2.10956726,157.59,157.57,5.7133]
[1762635433118,5.19956726,157.59,157.57,5.7133]
[1762635433308,5.19956726,157.59,157.57,8.6733]
[1762635434016,2.10956726,157.59,157.58,2.96]
[1762635434314,0.04793791,157.59,157.58,2.96]
[1762635435216,0.04793791,157.59,157.57,8.6733]
[1762635435418,3.13793791,157.59,157.57,8.6733]
[1762635435915,0.04793791,157.59,157.58,2.96]
[1762635445121,3.13793791,157.59,157.57,8.6733]
[1762635445326,3.13793791,157.59,157.57,5.7133]
[1762635446025,3.13793791,157.59,157.57,8.6733]
[1762635447827,3.13793791,157.59,157.57,5.7133]
[1762635449320,3.13793791,157.59,157.57,8.6733]
[1762635454737,0.04793791,157.59,157.58,3.17]
[1762635454938,5.03442047,157.59,157.58,3.17]
[1762635456341,0.04793791,157.59,157.58,3.17]
[1762635481759,5.02607442,157.59,157.58,3.17]
[1762635481959,0.04793791,157.59,157.58,3.17]
[1762635484563,0.04793791,157.59,157.58,8.8832]
[1762635486964,8.16584186,157.59,157.58,5.7132]
[1762635487149,8.16584186,157.59,157.56,8.9535]
[1762635487150,3.14,157.58,157.56,8.9535]
[1762635487354,4.97790395,157.57,157.56,8.9535]
[1762635487560,8.11790395,157.57,157.56,8.9535]
[1762635488964,4.97790395,157.57,157.56,8.9535]
[1762635502969,3.18793791,157.59,157.57,5.7132]
[1762635503171,5.00534016,157.58,157.57,5.7132]
[1762635503363,8.14534016,157.58,157.57,5.7132]
[1762635507478,8.14534016,157.58,157.57,8.9532]
[1762635514484,5.00534016,157.58,157.57,8.9532]
[1762635514690,0.04793791,157.59,157.58,3.2]
[1762635514987,5.05247744,157.59,157.58,3.2]
[1762635516293,0.04793791,157.59,157.58,3.2]
[1762635526195,0.04793791,157.59,157.58,8.9132]
[1762635534509,8.14703052,157.59,157.58,5.7132]
[1762635534804,3.11,157.58,157.56,71.5937]
[1762635535108,4.98909261,157.57,157.56,71.5937]
[1762635538906,8.09909261,157.57,157.56,3.0]
[1762635543618,4.98909261,157.57,157.56,3.0]
[1762635545317,8.10909261,157.57,157.56,3.0]
[1762635555724,8.10909261,157.57,157.55,5.75435933]
[1762635555923,3.12,157.57,157.56,3.16]
[1762635556123,8.0944449,157.57,157.56,3.16]
[1762635556525,4.9744449,157.57,157.56,3.16]
[1762635556920,4.9744449,157.57,157.55,0.04025933]
[1762635556921,8.8339,157.56,157.55,0.04025933]
[1762635557129,3.12,157.55,157.49,62.86]
[1762635557328,3.12,157.53,157.49,62.86]
[1762635557630,3.12,157.51,157.47,3.16]
[1762635558134,3.16000589,157.51,157.47,3.20743027]
[1762635558330,3.16000589,157.51,157.48,3.16]
[1762635559236,3.16000589,157.51,157.48,8.8767]
[1762635562836,3.16000589,157.51,157.49,3.16]
[1762635563245,0.04000589,157.51,157.5,3.16]
[1762635569642,3.16000589,157.51,157.47,8.92453027]
[1762635569844,3.16000589,157.51,157.48,3.16]
[1762635570842,3.16000589,157.51,157.48,8.8767]
[1762635571042,3.16000589,157.51,157.49,3.16]
[1762635571238,0.04000589,157.51,157.49,3.16]
[1762635571539,0.04000589,157.51,157.5,3.21]
[1762635571933,2.95,157.57,157.53,3.21]
[1762635572743,2.06146511,157.59,157.53,3.21]
[1762635572941,0.04085407,157.58,157.55,3.21]
[1762635573138,2.99085407,157.58,157.55,3.21]
[1762635573343,2.99085407,157.58,157.55,8.9241]
[1762635576651,2.99085407,157.58,157.56,5.7138]
[1762635576951,2.99085407,157.58,157.56,8.9238]
[1762635581963,0.04085407,157.58,157.57,3.21]
[1762635585649,7.96893489,157.64,157.6,3.11]
[1762635585848,5.00245508,157.63,157.6,3.11]
[1762635586049,5.00245508,157.62,157.6,3.11]
[1762635586245,3.14,157.64,157.6,3.11]
[1762635586457,5.00137954,157.63,157.6,3.11]
[1762635586654,3.18155741,157.64,157.6,3.15198421]
[1762635586960,5.00106165,157.63,157.61,8.8221]
[1762635587151,3.18155741,157.64,157.61,8.8221]
[1762635587352,4.99979391,157.63,157.61,8.8221]
[1762635587552,3.18155741,157.64,157.61,8.8221]
[1762635587859,4.99989367,157.63,157.61,8.8221]
[1762635588157,3.18155741,157.64,157.61,8.8221]
[1762635588358,4.99878576,157.63,157.61,8.8221]
[1762635588553,3.18155741,157.64,157.61,8.8221]
[1762635588753,4.99878576,157.63,157.61,8.8221]
[1762635588956,3.18155741,157.64,157.61,8.8221]
[1762635590860,3.18155741,157.64,157.62,8.8217]
[1762635591758,0.04155741,157.64,157.63,3.11]
[1762635592163,3.18155741,157.64,157.63,3.11]
[1762635592454,0.04155741,157.64,157.63,3.11]
[1762635595760,3.18155741,157.64,157.6,5.75428421]
[1762635595966,3.18155741,157.64,157.61,3.11]
[1762635597662,3.18155741,157.64,157.61,8.822]
[1762635600265,3.14,157.62,157.6,0.04198421]
[1762635600861,3.14,157.62,157.59,5.7127]
[1762635600862,3.14,157.61,157.52,3.11]
[1762635601058,3.14,157.59,157.52,3.11]
[1762635601258,3.14,157.56,157.52,3.11]
[1762635601660,3.22091573,157.57,157.52,3.11]
[1762635601869,6.35091573,157.57,157.55,3.18]
[1762635602071,3.13,157.6,157.55,3.18]
[1762635602270,0.04503644,157.58,157.55,3.18]
[1762635602466,0.04503644,157.58,157.57,3.18]
[1762635602667,3.17518727,157.59,157.57,3.18]
[1762635602864,3.17518727,157.59,157.56,2.96234213]
[1762635605770,3.17518727,157.59,157.57,2.92]
[1762635606565,0.04518727,157.59,157.58,2.92]
[1762635606769,0.04518727,157.59,157.57,8.6335]
[1762635606970,3.06518727,157.59,157.57,8.6335]
[1762635607567,3.06518727,157.59,157.57,2.92]
[1762635607774,3.06518727,157.59,157.56,0.04234213]
[1762635607968,6.24091573,157.57,157.56,0.04234213]
[1762635609179,3.02,157.57,157.56,0.04234213]
[1762635609476,6.24091573,157.57,157.56,0.04234213]
[1762635610273,11.23858067,157.57,157.56,0.04234213]
[1762635612882,3.22091573,157.57,157.56,2.96234213]
[1762635613673,3.06518727,157.59,157.57,5.7136]
[1762635613877,5.04357159,157.58,157.57,8.6336]
[1762635614073,5.04357159,157.58,157.57,5.7136]
[1762635615285,8.06357159,157.58,157.57,5.7136]
[1762635615482,5.04357159,157.58,157.57,8.6336]
[1762635616789,8.06357159,157.58,157.57,5.7136]
[1762635617676,3.02,157.57,157.56,0.04234213]
[1762635617882,8.06357159,157.57,157.56,0.04234213]
[1762635619089,8.06357159,157.57,157.56,5.75624213]
[1762635619489,3.06518727,157.59,157.56,2.96234213]
[1762635621093,3.06518727,157.59,157.58,5.7132]
[1762635621686,0.04518727,157.59,157.58,8.6332]
[1762635623184,0.04518727,157.59,157.58,5.7132]
[1762635624688,3.06518727,157.59,157.58,5.7132]
[1762635625289,8.727e-05,157.59,157.58,5.7132]
[1762635625491,3.22091573,157.6,157.58,5.7132]
[1762635627596,5.27091573,157.6,157.58,8.6332]
[1762635632394,5.02648579,157.59,157.58,8.6332]
[1762635639101,7.07648579,157.59,157.58,8.6332]
[1762635639291,5.02648579,157.59,157.58,8.6332]
[1762635642093,9.89036936,157.59,157.58,8.6332]
[1762635646400,11.95274905,157.59,157.58,8.6332]
[1762635648304,12.00017103,157.59,157.58,8.6332]
[1762635649101,0.40299134,157.59,157.58,8.6332]
[1762635649301,2.11060394,157.61,157.6,8.7024]
[1762635650796,0.04822425,157.61,157.6,8.7024]
[1762635661102,5.01546175,157.61,157.6,8.7024]
[1762635662298,9.12784144,157.61,157.6,5.7124]
[1762635662503,2.05,157.6,157.58,5.7128]
[1762635662698,11.87793816,157.59,157.58,8.8228]
[1762635662905,7.02961719,157.59,157.58,8.8228]
[1762635664506,11.88026525,157.59,157.58,8.8228]
[1762635664906,7.02961719,157.59,157.58,8.8228]
[1762635665298,3.75e-05,157.59,157.58,8.8228]
[1762635665503,2.11060394,157.61,157.6,8.7524]
[1762635665805,6.96090819,157.61,157.6,8.7524]
[1762635667607,9.01090819,157.61,157.6,5.7124]
[1762635671612,9.01090819,157.61,157.6,5.7124]
[1762635677022,6.96090819,157.61,157.6,8.7524]
[1762635677515,11.88053741,157.61,157.6,8.7524]
[1762635678819,13.93053741,157.61,157.6,5.7124]
[1762635682914,11.88053741,157.61,157.6,8.7524]
[1762635689615,7.03023316,157.61,157.6,8.7524]
[1762635692327,13.86283042,157.61,157.6,5.7124]
[1762635695437,9.76045073,157.61,157.6,8.6324]
[1762635695737,4.96785347,157.61,157.6,8.6324]
[1762635696037,24.06237969,157.64,157.63,8.6314]
[1762635696232,6.85440075,157.64,157.63,8.6314]
[1762635699441,2.06237969,157.64,157.63,8.6314]
[1762635704345,62.86416231,157.65,157.63,8.6314]
[1762635704546,2.06237969,157.64,157.63,8.8814]
[1762635707950,6.92792004,157.64,157.63,8.8814]
[1762635708352,4.86554035,157.64,157.63,8.8814]
[1762635709751,64.91416231,157.65,157.63,8.8814]
[1762635710146,62.86416231,157.65,157.64,3.17]
[1762635710346,67.72911949,157.65,157.64,3.17]
[1762635711042,4.90911949,157.65,157.64,3.17]
[1762635713146,0.04416231,157.65,157.64,3.17]
[1762635715547,3.22024187,157.69,157.66,3.17]
[1762635716252,5.27024187,157.71,157.68,3.17]
[1762635716549,4.8592533,157.7,157.68,3.21096277]
[1762635716745,5.31623666,157.71,157.68,3.21096277]
[1762635716954,6.90899462,157.7,157.68,3.21096277]
[1762635717151,2.05,157.7,157.68,3.21096277]
[1762635717653,11.59946866,157.69,157.68,0.04096277]
[1762635718657,6.90740654,157.69,157.68,0.04096277]
[1762635719649,4.85740654,157.69,157.68,3.21096277]
[1762635719856,62.76,157.7,157.68,3.21096277]
[1762635720250,64.81,157.7,157.68,3.21096277]
[1762635720952,64.81,157.7,157.68,8.92026277]
[1762635722850,2.05,157.69,157.68,0.04096277]
[1762635723157,6.90431888,157.69,157.68,0.04096277]
[1762635723460,2.05,157.68,157.61,3.16]
[1762635723758,5.27024187,157.64,157.61,3.16]
[1762635724558,5.31645675,157.64,157.61,3.20149864]
[1762635724959,5.31645675,157.64,157.62,5.7116]
[1762635725457,5.31645675,157.64,157.62,8.8716]
[1762635737457,4.83928291,157.63,157.62,8.8716]
[1762635739557,6.88928291,157.63,157.62,5.7116]
[1762635744272,11.56641986,157.63,157.62,5.7116]
[1762635747366,11.56641986,157.63,157.62,8.8716]
[1762635747868,11.56641986,157.63,157.62,5.7116]
[1762635749470,6.88928291,157.63,157.62,5.7116]
[1762635756477,6.88928291,157.63,157.62,8.6516]
[1762635758679,2.05,157.63,157.62,8.6516]
[1762635759574,6.8855207,157.63,157.62,8.6516]
[1762635760182,2.05,157.63,157.62,8.6516]
[1762635760871,6.88566813,157.63,157.62,8.6516]
[1762635762781,2.05,157.63,157.62,8.6516]
[1762635762982,0.04621488,157.64,157.62,8.6516]
[1762635763185,2.09621488,157.64,157.62,8.6516]
[1762635764078,2.09621488,157.64,157.63,5.7114]
[1762635764282,6.95798585,157.64,157.63,5.7114]
[1762635766383,11.65771181,157.64,157.63,5.7114]
[1762635768389,13.71904143,157.64,157.63,5.7114]
[1762635770002,13.71904143,157.64,157.62,2.94]
[1762635770199,4.86177097,157.63,157.62,2.94]
[1762635771006,4.86177097,157.63,157.62,8.6517]
[1762635776302,9.56795578,157.63,157.62,8.6517]
[1762635776604,4.86177097,157.63,157.62,8.6517]
[1762635778010,9.56799473,157.63,157.62,8.6517]
[1762635778910,4.86177097,157.63,157.62,8.6517]
[1762635779404,9.56794185,157.63,157.62,8.6517]
[1762635780006,9.56794185,157.63,157.62,2.94]
[1762635780707,9.56794185,157.63,157.62,8.6517]
[1762635781801,4.86177097,157.63,157.62,8.6517]
[1762635783415,9.56790776,157.63,157.62,2.94]
[1762635783914,2.05,157.62,157.61,5.75339864]
[1762635784213,13.67923738,157.62,157.61,5.75339864]
[1762635784903,13.67923738,157.62,157.61,8.74339864]
[1762635785213,11.62923738,157.62,157.61,8.74339864]
[1762635785602,13.67923738,157.62,157.61,0.04149864]
[1762635788013,13.67923738,157.62,157.61,3.03149864]
[1762635788410,11.62923738,157.62,157.61,3.03149864]
[1762635789917,6.92310059,157.62,157.61,3.03149864]
[1762635790908,4.86177097,157.62,157.61,3.03149864]
[1762635791121,2.1075445,157.64,157.63,2.99]
[1762635791420,11.68514978,157.64,157.63,2.99]
[1762635793118,6.97945495,157.64,157.63,2.99]
[1762635793321,11.64238576,157.64,157.63,2.99]
[1762635793724,22.0,157.67,157.65,2.99]
[1762635794224,2.06132962,157.68,157.67,2.99]
[1762635795423,0.04195161,157.69,157.68,8.6995]
[1762635801529,0.04195161,157.69,157.68,2.99]
[1762635804734,2.09195161,157.69,157.66,3.03420659]
[1762635805030,2.06132962,157.68,157.66,3.03420659]
[1762635806229,2.06132962,157.68,157.67,2.99]
[1762635813927,2.06132962,157.68,157.67,8.6999]
[1762635826556,0.04195161,157.69,157.68,3.11]
[1762635833348,3.21698016,157.74,157.7,3.11]
[1762635833661,22.0,157.77,157.7,3.11]
[1762635833662,25.21698016,157.77,157.7,3.11]
[1762635833960,9.41452278,157.76,157.75,3.11]
[1762635834360,4.81733427,157.76,157.75,3.11]
[1762635836062,0.04155062,157.77,157.76,8.8166]
[1762635836262,4.85657464,157.77,157.76,8.8166]
[1762635836454,0.04155062,157.77,157.76,8.8166]
[1762635837465,2.05,157.76,157.74,0.04832831]
[1762635837657,6.8632347,157.75,157.74,0.04832831]
[1762635840969,2.09155062,157.77,157.74,3.15832831]
[1762635841164,4.81286616,157.76,157.74,3.15832831]
[1762635841461,2.09155062,157.77,157.76,3.19]
[1762635841667,0.04155062,157.77,157.76,3.19]
[1762635843170,4.85135885,157.77,157.76,3.19]
[1762635843364,6.90135885,157.77,157.75,8.8969]
[1762635843566,2.09155062,157.77,157.75,8.8969]
[1762635844668,2.09155062,157.77,157.76,3.19]
[1762635844869,6.8996061,157.77,157.76,3.19]
[1762635845269,2.09155062,157.77,157.76,3.19]
[1762635845459,2.09155062,157.77,157.75,5.7069]
[1762635845664,2.09155062,157.77,157.75,8.8969]
[1762635846473,0.04155062,157.77,157.76,3.19]
[1762635858072,27.92510334,157.84,157.75,5.7069]
[1762635858073,2.09,157.85,157.78,3.19]
[1762635858273,6.83923483,157.84,157.78,3.19]
[1762635858477,6.83923483,157.83,157.78,3.19]
[1762635858670,2.09,157.83,157.78,3.19]
[1762635859072,0.04323541,157.82,157.8,3.19]
[1762635859975,0.04323541,157.82,157.81,5.7047]
[1762635860171,0.04323541,157.82,157.81,8.8947]
[1762635860574,2.13323541,157.82,157.79,8.9399432]
[1762635860784,2.13323541,157.82,157.79,3.2344432]
[1762635860785,2.09,157.81,157.79,3.2344432]
[1762635861668,2.09,157.81,157.79,8.9399432]
[1762635865480,2.13323541,157.82,157.8,3.19]
[1762635865876,2.13323541,157.82,157.8,8.8952]
[1762635867876,2.13323541,157.82,157.8,3.19]
[1762635868083,2.13323541,157.82,157.79,0.0444432]
[1762635868084,2.09,157.8,157.79,0.0444432]
[1762635868277,6.84001476,157.8,157.79,0.0444432]
[1762635871488,11.44681712,157.8,157.79,0.0444432]
[1762635871672,6.84001476,157.8,157.79,0.0444432]
[1762635871986,11.44681712,157.8,157.79,0.0444432]
[1762635872287,6.84001476,157.8,157.79,0.0444432]
[1762635872585,11.44811688,157.8,157.79,0.0444432]
[1762635872780,6.84001476,157.8,157.79,0.0444432]
[1762635873178,11.44811688,157.8,157.79,0.0444432]
[1762635879296,17.37322022,157.8,157.79,0.0444432]
[1762635883193,11.44811688,157.8,157.79,0.0444432]
[1762635883496,2.08,157.79,157.75,5.7067]
[1762635883797,2.08,157.77,157.75,8.7067]
[1762635883997,9.35811688,157.76,157.75,8.7067]
[1762635884789,11.43811688,157.76,157.75,3.0]
[1762635884992,11.60092373,157.76,157.74,3.28260514]
[1762635885292,9.52092373,157.75,157.74,3.28260514]
[1762635886096,14.81790389,157.75,157.74,0.04260514]
[1762635886300,14.81790389,157.75,157.69,3.24]
[1762635886301,2.08,157.74,157.69,3.24]
[1762635886595,11.60092373,157.73,157.69,3.24]
[1762635886792,9.51938434,157.72,157.69,3.24]
[1762635886994,4.75001476,157.71,157.7,8.9487]
[1762635887196,0.04760101,157.72,157.71,3.24]
[1762635887498,4.86453566,157.72,157.71,3.24]
[1762635892002,0.04760101,157.72,157.71,3.24]
[1762635892701,4.13878973,157.79,157.77,3.24]
[1762635892999,4.80916397,157.78,157.77,3.24]
[1762635901810,2.12834069,157.79,157.76,5.74659685]
[1762635902116,6.88881457,157.78,157.76,8.72659685]
[1762635902414,2.08,157.78,157.76,8.72659685]
[1762635909519,4.13878973,157.78,157.76,8.72659685]
[1762635914626,2.05878973,157.78,157.77,2.98]
[1762635914827,11.69741168,157.78,157.77,2.98]
[1762635916222,9.63862195,157.78,157.77,2.98]
[1762635916627,0.04834069,157.79,157.76,5.74659685]
[1762635916628,0.04834069,157.79,157.78,8.6859]
[1762635916820,9.68550766,157.79,157.78,8.6859]
[1762635917124,4.86059243,157.79,157.78,8.6859]
[1762635917423,0.04834069,157.79,157.78,8.6859]
[1762635926936,4.13878973,157.84,157.83,8.6841]
[1762635927130,8.95587246,157.84,157.83,8.6841]
[1762635927334,2.05878973,157.84,157.83,8.6841]
[1762635933636,4.13878973,157.84,157.83,8.6841]
[1762635934235,8.95357298,157.84,157.83,2.98]
[1762635936245,13.75846886,157.84,157.83,2.98]
[1762635938137,2.08,157.83,157.82,0.04507082]
[1762635938442,2.08,157.82,157.74,3.2]
[1762635938643,2.08,157.77,157.74,3.2]
[1762635939235,2.08,157.77,157.74,0.04784649]
[1762635939236,4.13878973,157.76,157.74,0.04784649]
[1762635939442,11.71141563,157.75,157.74,0.04784649]
[1762635939742,2.08,157.74,157.69,3.2]
[1762635939939,4.13878973,157.72,157.69,3.2]
[1762635940537,2.05878973,157.7,157.69,8.9563476]
[1762635940843,4.13878973,157.7,157.69,0.0473476]
[1762635941441,0.04023405,157.72,157.69,3.2473476]
[1762635942643,0.04023405,157.72,157.71,3.2]
[1762635946250,2.05878973,157.75,157.73,3.23]
[1762635946843,2.08,157.78,157.75,3.23]
[1762635946844,2.05878973,157.77,157.75,3.23]
[1762635947044,9.50395146,157.76,157.7,3.23]
[1762635947251,4.13878973,157.73,157.71,0.04825614]
[1762635947452,4.13878973,157.73,157.72,5.708]
[1762635950156,2.05878973,157.73,157.72,5.708]
[1762635951150,2.10528697,157.75,157.74,3.23]
[1762635952456,0.04649724,157.75,157.74,3.23]
[1762635954259,2.12649724,157.75,157.73,8.9376]
[1762635958360,2.12649724,157.75,157.71,8.98645614]
[1762635959060,2.12649724,157.75,157.72,5.7079]
[1762635959262,2.12649724,157.75,157.72,8.9379]
[1762635960459,2.08,157.74,157.71,0.04825614]
[1762635962662,2.08,157.74,157.71,3.02825614]
[1762635962964,2.08,157.74,157.71,8.73655614]
[1762635965456,2.08,157.74,157.71,5.75655614]
[1762635969565,2.08,157.74,157.71,8.73655614]
[1762635970561,5.29569333,157.72,157.71,0.04825614]
[1762635971961,2.08,157.71,157.67,8.6898]
[1762635972967,2.12754585,157.71,157.67,8.73569541]
[1762635974272,2.12754585,157.71,157.68,8.6895]
[1762635974765,2.12754585,157.71,157.69,5.7091]
[1762635975066,2.12754585,157.71,157.69,8.6891]
[1762635977164,0.04754585,157.71,157.7,2.98]
[1762635977667,2.12754585,157.71,157.69,8.6891]
[1762635978470,0.04754585,157.71,157.7,2.98]
[1762635984371,4.90305079,157.71,157.7,2.98]
[1762635984572,4.90324831,157.71,157.7,2.98]
[1762635998187,9.68832328,157.71,157.7,2.98]
[1762635998886,4.90324831,157.71,157.7,2.98]
[1762636000790,0.04754585,157.71,157.7,2.98]
[1762636001692,4.90797652,157.71,157.7,2.98]
[1762636004892,4.90797652,157.71,157.7,8.6888]
[1762636016715,0.04754585,157.71,157.7,8.6888]
[1762636016917,4.13861971,157.76,157.74,3.08]
[1762636017217,9.58160806,157.75,157.74,3.08]
[1762636018218,9.58160806,157.75,157.74,8.7874]
[1762636021920,2.08,157.74,157.66,3.1]
[1762636022125,2.05861971,157.67,157.62,3.1]
[1762636022417,4.13861971,157.67,157.65,5.7104]
[1762636022611,4.13861971,157.67,157.63,3.24]
[1762636022808,4.81899466,157.66,157.63,3.24]
[1762636023025,4.13861971,157.65,157.63,0.04376312]
[1762636023322,2.05861971,157.72,157.64,3.24]
[1762636023515,2.08,157.7,157.67,3.24]
[1762636023711,6.8957876,157.69,157.61,3.24]
[1762636023917,4.81669876,157.68,157.61,3.24]
[1762636024226,4.13861971,157.72,157.68,3.24]
[1762636024522,11.65964399,157.71,157.68,3.28883739]
[1762636024723,13.7190054,157.7,157.68,3.28883739]
[1762636024922,4.13861971,157.7,157.68,3.28883739]
[1762636026023,4.13861971,157.7,157.68,8.99823739]
[1762636026420,6.89586793,157.69,157.68,0.04883739]